fUST/lending_fUST_20250207
["ID","MTS","AMOUNT","RATE_DAILY","PERIOD"]
[352062220,1738918238355,-500.0,0.00013835,2]
[352062221,1738918238366,-500.0,0.00013835,2]
[352062222,1738918238376,-558.34902161,0.00013835,2]
[352062223,1738918238385,-500.0,0.00013835,2]
[352062224,1738918238395,-500.0,0.00013835,2]
[352062225,1738918238405,-500.0,0.00013835,2]
[352062226,1738918238414,-621.93622851,0.00013835,2]
[352062227,1738918238423,-626.2347973,0.00013835,2]
[352062228,1738918238433,-590.94673044,0.00013835,2]
[352062229,1738918238445,-566.39591227,0.00013835,2]
[352062230,1738918238454,-500.0,0.00013835,2]
[352062231,1738918238567,-500.0,0.00013835,2]
[352062232,1738918238577,-500.0,0.00013835,2]
[352062233,1738918238588,-500.0,0.00013835,2]
[352062234,1738918238599,-438.57,0.00013835,2]
[352062235,1738918238609,-500.0,0.00013835,2]
[352062236,1738918238619,-424.6675532,0.00013835,2]
[352062237,1738918238630,-500.0,0.00013835,2]
[352062238,1738918238640,-500.0,0.00013835,2]
[352062239,1738918238651,-500.0,0.00013835,2]
[352062240,1738918238661,-500.0,0.00013835,2]
[352062241,1738918238671,-500.0,0.00013835,2]
[352062242,1738918238680,-572.01464713,0.00013835,2]
[352062243,1738918238689,-500.0,0.00013835,2]
[352062244,1738918238699,-500.0,0.00013835,2]
[352062245,1738918238709,-500.0,0.00013835,2]
[352062246,1738918238719,-500.0,0.00013835,2]
[352062247,1738918238729,-500.0,0.00013835,2]
[352062248,1738918238740,-500.0,0.00013835,2]
[352062249,1738918238751,-500.0,0.00013835,2]
[352062250,1738918238760,-500.16828391,0.00013835,2]
[352062251,1738918238770,-500.0,0.00013835,2]
[352062252,1738918238781,-500.0,0.00013835,2]
[352062253,1738918238791,-500.0,0.00013835,2]
[352062254,1738918238800,-504.10814525,0.00013835,2]
[352062255,1738918238809,-500.0,0.00013835,2]
[352062256,1738918238820,-504.75871981,0.00013835,2]
[352062257,1738918238831,-503.69229465,0.00013835,2]
[352062258,1738918238840,-500.0,0.00013835,2]
[352062259,1738918238850,-500.0,0.00013835,2]
[352062260,1738918238860,-500.0,0.00013835,2]
[352062261,1738918238871,-635.11941932,0.00013835,2]
[352062262,1738918238881,-500.0,0.00013835,2]
[352062263,1738918238891,-500.0,0.00013835,2]
[352062264,1738918238901,-500.0,0.00013835,2]
[352062265,1738918238910,-500.0,0.00013835,2]
[352062266,1738918238920,-500.0,0.00013835,2]
[352062267,1738918238929,-500.0,0.00013835,2]
[352062268,1738918238939,-500.0,0.00013835,2]
[352062269,1738918238949,-500.0,0.00013835,2]
[352062270,1738918238959,-599.83,0.00013835,2]
[352062271,1738918238969,-500.0,0.00013835,2]
[352062272,1738918238979,-500.0,0.00013835,2]
[352062273,1738918238989,-500.0,0.00013835,2]
[352062274,1738918239000,-500.0,0.00013835,2]
[352062275,1738918239010,-500.0,0.00013835,2]
[352062276,1738918239019,-536.38,0.00013835,2]
[352062277,1738918239029,-247.87,0.00013835,2]
[352062278,1738918239039,-512.83,0.00013835,2]
[352062279,1738918239048,-500.0,0.00013835,2]
[352062280,1738918239059,-500.0,0.00013835,2]
[352062281,1738918239068,-500.0,0.00013835,2]
[352062282,1738918239078,-248.84,0.00013835,2]
[352062283,1738918239088,-154.72,0.00013835,2]
[352062284,1738918239098,-500.0,0.00013835,2]
[352062285,1738918239108,-500.0,0.00013835,2]
[352062286,1738918239119,-500.0,0.00013835,2]
[352062287,1738918239129,-500.0,0.00013835,2]
[352062288,1738918239138,-527.81,0.00013835,2]
[352062289,1738918239147,-500.0,0.00013835,2]
[352062290,1738918239157,-500.0,0.00013835,2]
[352062291,1738918239167,-1510.37,0.00013835,2]
[352062292,1738918239176,-500.0,0.00013835,2]
[352062293,1738918239185,-500.0,0.00013835,2]
[352062294,1738918239195,-560.55,0.00013835,2]
[352062295,1738918239204,-500.0,0.00013835,2]
[352062296,1738918239214,-786.9,0.00013835,2]
[352062297,1738918239224,-502.85590627,0.00013835,2]
[352062298,1738918239234,-500.0,0.00013835,2]
[352062299,1738918239243,-500.0,0.00013835,2]
[352062300,1738918239254,-500.0,0.00013835,2]
[352062301,1738918239264,-500.0,0.00013835,2]
[352062302,1738918239274,-543.8,0.00013835,2]
[352062303,1738918239284,-500.0,0.00013835,2]
[352062304,1738918239294,-500.0,0.00013835,2]
[352062305,1738918239304,-500.0,0.00013835,2]
[352062306,1738918239314,-500.0,0.00013835,2]
[352062307,1738918239324,-500.0,0.00013835,2]
[352062308,1738918239333,-500.0,0.00013835,2]
[352062309,1738918239343,-500.0,0.00013835,2]
[352062310,1738918239352,-735.35,0.00013835,2]
[352062311,1738918239362,-500.0,0.00013835,2]
[352062312,1738918239373,-500.0,0.00013835,2]
[352062313,1738918239382,-500.0,0.00013835,2]
[352062314,1738918239392,-500.0,0.00013835,2]
[352062315,1738918239402,-500.0,0.00013835,2]
[352062316,1738918239411,-4304.02,0.00013835,2]
[352062317,1738918239421,-503.67093681,0.00013835,2]
[352062318,1738918239430,-500.0,0.00013835,2]
[352062319,1738918239440,-500.0,0.00013835,2]
[352062320,1738918239450,-500.0,0.00013835,2]
[352062321,1738918239460,-500.0,0.00013835,2]
[352062323,1738918239469,-500.0,0.00013835,2]
[352062324,1738918239478,-500.0,0.00013835,2]
[352062325,1738918239488,-507.06486094,0.00013835,2]
[352062326,1738918239499,-508.01640975,0.00013835,2]
[352062327,1738918239508,-1043.52,0.00013835,2]
[352062328,1738918239518,-500.0,0.00013835,2]
[352062329,1738918239529,-500.0,0.00013835,2]
[352062330,1738918239544,-500.0,0.00013835,2]
[352062331,1738918239560,-282.37918245,0.00013835,2]
[352062332,1738918239575,-785.0,0.00013835,2]
[352062333,1738918239586,-500.0,0.00013835,2]
[352062334,1738918239602,-500.0,0.00013835,2]
[352062335,1738918239615,-1222.5,0.00013835,2]
[352062336,1738918239631,-500.0,0.00013835,2]
[352062337,1738918239645,-5477.48,0.00013835,2]
[352062339,1738918239658,-3231.21,0.00013835,2]
[352062340,1738918239673,-644.68,0.00013835,2]
[352062341,1738918239688,-554.41,0.00013835,2]
[352062342,1738918239701,-500.0,0.00013835,2]
[352062343,1738918239714,-500.0,0.00013835,2]
[352062345,1738918239729,-500.0,0.00013835,2]
[352062347,1738918239745,-500.0,0.00013835,2]
[352062349,1738918239759,-500.0,0.00013835,2]
[352062350,1738918239770,-548.17,0.00013835,2]
[352062351,1738918239783,-502.18840362,0.00013835,2]
[352062352,1738918239796,-525.7,0.00013835,2]
[352062353,1738918239808,-500.0,0.00013835,2]
[352062354,1738918239823,-829.82073046,0.0001388,2]
[352062356,1738918239836,-152.0,0.00013882,2]
[352062357,1738918239850,-316.4256987,0.0001389,2]
[352062358,1738918239865,-361.4772414,0.0001389,2]
[352062359,1738918239880,-215.772047,0.0001389,2]
[352062360,1738918239893,-227.1064186,0.0001389,2]
[352062361,1738918239904,-153.0,0.0001389,2]
[352062362,1738918239916,-153.0,0.0001389,2]
[352062363,1738918239930,-153.0,0.0001389,2]
[352062364,1738918239945,-213.9511229,0.0001389,2]
[352062365,1738918239959,-500.0,0.00013895,2]
[352062366,1738918239971,-744.62464841,0.000139,2]
[352062367,1738918239983,-151.0,0.000139,2]
[352062368,1738918239997,-151.0,0.000139,2]
[352062369,1738918240009,-500.0,0.00013971,2]
[352062370,1738918240020,-500.0,0.00013971,2]
[352062371,1738918240032,-160.0,0.00013971,2]
[352062372,1738918240043,-500.0,0.00013972,2]
[352062373,1738918240056,-194.14,0.00013972,2]
[352062374,1738918240068,-500.0,0.00013972,2]
[352062375,1738918240079,-608.2,0.00013972,2]
[352062376,1738918240093,-500.0,0.00013972,2]
[352062377,1738918240106,-500.0,0.00013972,2]
[352062378,1738918240118,-500.0,0.00013972,2]
[352062379,1738918240132,-500.0,0.00013972,2]
[352062380,1738918240143,-500.0,0.00013972,2]
[352062381,1738918240155,-647.71802178,0.00013972,2]
[352062382,1738918240167,-510.09551602,0.00013972,2]
[352062383,1738918240179,-599.8155892,0.00013972,2]
[352062384,1738918240192,-500.0,0.00013972,2]
[352062385,1738918240204,-510.95440687,0.00013972,2]
[352062386,1738918240217,-604.44,0.00013972,2]
[352062387,1738918240229,-500.0,0.00013972,2]
[352062388,1738918240241,-297.1,0.00013972,2]
[352062389,1738918240252,-500.0,0.00013972,2]
[352062390,1738918240265,-500.0,0.00013972,2]
[352062391,1738918240278,-532.31,0.00013972,2]
[352062392,1738918240290,-500.0,0.00013972,2]
[352062393,1738918240302,-456.51750785,0.00013972,2]
[352062394,1738918240314,-500.0,0.00013972,2]
[352062395,1738918240326,-500.0,0.00013972,2]
[352062396,1738918240339,-500.0,0.00013972,2]
[352062397,1738918240351,-500.0,0.00013972,2]
[352062398,1738918240363,-500.0,0.00013972,2]
[352062399,1738918240378,-500.0,0.00013972,2]
[352062400,1738918240390,-491.34354465,0.00013972,2]
[352062401,1738918240401,-599.83,0.00013972,2]
[352062402,1738918240413,-500.0,0.00013972,2]
[352062403,1738918240425,-500.0,0.00013972,2]
[352062404,1738918240437,-500.0,0.00013972,2]
[352062405,1738918240448,-599.9535165,0.00013972,2]
[352062406,1738918240460,-500.0,0.00013972,2]
[352062407,1738918240472,-500.0,0.00013972,2]
[352062408,1738918240484,-500.0,0.00013972,2]
[352062409,1738918240496,-626.20658873,0.00013972,2]
[352062410,1738918240507,-500.0,0.00013972,2]
[352062411,1738918240519,-502.49519047,0.00013972,2]
[352062412,1738918240531,-527.81,0.00013972,2]
[352062413,1738918240543,-500.0,0.00013972,2]
[352062414,1738918240555,-500.0,0.00013972,2]
[352062415,1738918240567,-1510.37,0.00013972,2]
[352062416,1738918240578,-500.0,0.00013972,2]
[352062417,1738918240590,-284.17,0.00013972,2]
[352062418,1738918240601,-500.0,0.00013972,2]
[352062419,1738918240611,-786.9,0.00013972,2]
[352062420,1738918240621,-500.0,0.00013972,2]
[352062421,1738918240631,-244.91,0.00013972,2]
[352062422,1738918240641,-501.99948763,0.00013972,2]
[352062423,1738918240650,-500.0,0.00013972,2]
[352062424,1738918240660,-500.0,0.00013972,2]
[352062425,1738918240669,-500.0,0.00013972,2]
[352062426,1738918240678,-500.0,0.00013972,2]
[352062427,1738918240687,-500.0,0.00013972,2]
[352062428,1738918240697,-500.0,0.00013972,2]
[352062429,1738918240881,-461.25,0.00013972,2]
[352062430,1738918240893,-500.0,0.00013972,2]
[352062431,1738918240905,-735.35,0.00013972,2]
[352062432,1738918240915,-500.0,0.00013972,2]
[352062433,1738918240925,-500.0,0.00013972,2]
[352062434,1738918240933,-500.0,0.00013972,2]
[352062435,1738918240943,-500.0,0.00013972,2]
[352062436,1738918240952,-500.0,0.00013972,2]
[352062437,1738918240962,-4304.02,0.00013972,2]
[352062438,1738918240972,-356.04,0.00013972,2]
[352062439,1738918240981,-342.70685066,0.00013972,2]
[352062440,1738918240991,-500.0,0.00013972,2]
[352062441,1738918241001,-500.0,0.00013972,2]
[352062442,1738918241010,-500.0,0.00013972,2]
[352062443,1738918241020,-502.27859123,0.00013972,2]
[352062444,1738918241029,-1043.52,0.00013972,2]
[352062445,1738918241039,-405.95,0.00013972,2]
[352062446,1738918241048,-500.0,0.00013972,2]
[352062447,1738918241057,-500.23078858,0.00013972,2]
[352062448,1738918241067,-785.0,0.00013972,2]
[352062449,1738918241076,-500.0,0.00013972,2]
[352062450,1738918241086,-350.61175563,0.00013972,2]
[352062451,1738918241095,-1222.5,0.00013972,2]
[352062452,1738918241104,-500.0,0.00013972,2]
[352062453,1738918241115,-5477.48,0.00013972,2]
[352062454,1738918241128,-3231.21,0.00013972,2]
[352062455,1738918241137,-644.68,0.00013972,2]
[352062456,1738918241146,-500.0,0.00013972,2]
[352062457,1738918241156,-500.0,0.00013972,2]
[352062458,1738918241166,-500.0,0.00013972,2]
[352062459,1738918241183,-500.0,0.00013972,2]
[352062460,1738918241193,-500.0,0.00013972,2]
[352062461,1738918241202,-548.17,0.00013972,2]
[352062462,1738918241211,-400.0,0.00013973,2]
[352062463,1738918241220,-406.13864036,0.0001399,2]
[352062464,1738918241229,-151.0,0.00014,2]
[352062465,1738918241239,-151.0,0.00014,2]
[352062466,1738918241248,-151.0,0.00014,2]
[352062467,1738918241257,-151.0,0.00014,2]
[352062468,1738918241266,-744.62464834,0.00014038,2]
[352062469,1738918241276,-500.0,0.00014099,2]
[352062470,1738918241285,-500.0,0.00014099,2]
[352062471,1738918241293,-500.0,0.00014099,2]
[352062472,1738918241303,-160.0,0.00014099,2]
[352062473,1738918241312,-151.0,0.000141,2]
[352062474,1738918241322,-151.0,0.000141,2]
[352062475,1738918241331,-47864.87889402,0.000141,2]
[352062476,1738918241341,-151.0,0.000141,2]
[352062477,1738918241350,-500.0,0.00014108,2]
[352062478,1738918241359,-160.0,0.00014108,2]
[352062479,1738918241369,-500.0,0.00014109,2]
[352062480,1738918241381,-500.0,0.00014109,2]
[352062481,1738918241390,-299.84,0.00014109,2]
[352062482,1738918241400,-249.82276479,0.00014109,2]
[352062483,1738918241410,-500.0,0.00014109,2]
[352062484,1738918241419,-500.0,0.00014109,2]
[352062485,1738918241429,-500.0,0.00014109,2]
[352062486,1738918241439,-500.0,0.00014109,2]
[352062487,1738918241448,-500.0,0.00014109,2]
[352062488,1738918241458,-500.0,0.00014109,2]
[352062489,1738918241467,-500.0,0.00014109,2]
[352062490,1738918241475,-500.0,0.00014109,2]
[352062491,1738918241485,-500.0,0.00014109,2]
[352062492,1738918241494,-295.28641733,0.00014109,2]
[352062493,1738918241503,-500.0,0.00014109,2]
[352062494,1738918241512,-231.5601373,0.00014109,2]
[352062495,1738918241522,-599.83,0.00014109,2]
[352062496,1738918241531,-500.0,0.00014109,2]
[352062497,1738918241541,-500.0,0.00014109,2]
[352062498,1738918241551,-500.0,0.00014109,2]
[352062499,1738918241560,-500.0,0.00014109,2]
[352062500,1738918241570,-500.0,0.00014109,2]
[352062501,1738918241579,-500.0,0.00014109,2]
[352062502,1738918241588,-500.0,0.00014109,2]
[352062503,1738918241598,-527.81,0.00014109,2]
[352062504,1738918241607,-500.0,0.00014109,2]
[352062505,1738918241616,-500.0,0.00014109,2]
[352062506,1738918241630,-1510.37,0.00014109,2]
[352062507,1738918241639,-500.0,0.00014109,2]
[352062508,1738918241649,-500.0,0.00014109,2]
[352062509,1738918241658,-786.9,0.00014109,2]
[352062510,1738918241667,-346.92022482,0.00014109,2]
[352062511,1738918241678,-500.0,0.00014109,2]
[352062512,1738918241687,-500.0,0.00014109,2]
[352062513,1738918241697,-500.0,0.00014109,2]
[352062514,1738918241707,-500.0,0.00014109,2]
[352062515,1738918241717,-500.0,0.00014109,2]
[352062516,1738918241726,-500.0,0.00014109,2]
[352062517,1738918241737,-500.0,0.00014109,2]
[352062518,1738918241750,-735.35,0.00014109,2]
[352062519,1738918241760,-500.0,0.00014109,2]
[352062520,1738918241770,-500.0,0.00014109,2]
[352062521,1738918241781,-500.0,0.00014109,2]
[352062522,1738918241791,-181.14,0.00014109,2]
[352062523,1738918241801,-500.0,0.00014109,2]
[352062524,1738918241810,-4304.02,0.00014109,2]
[352062525,1738918241821,-308.9598349,0.00014109,2]
[352062526,1738918241831,-500.0,0.00014109,2]
[352062527,1738918241841,-500.0,0.00014109,2]
[352062528,1738918241851,-1043.52,0.00014109,2]
[352062529,1738918241861,-565.28,0.00014109,2]
[352062530,1738918241873,-785.0,0.00014109,2]
[352062531,1738918241883,-500.0,0.00014109,2]
[352062532,1738918241893,-1222.5,0.00014109,2]
[352062533,1738918241902,-500.0,0.00014109,2]
[352062534,1738918241912,-5477.48,0.00014109,2]
[352062535,1738918241922,-3231.21,0.00014109,2]
[352062536,1738918241931,-644.68,0.00014109,2]
[352062537,1738918241941,-500.0,0.00014109,2]
[352062538,1738918241950,-406.32126715,0.00014109,2]
[352062539,1738918241959,-500.0,0.00014109,2]
[352062540,1738918241968,-500.0,0.00014109,2]
[352062541,1738918241977,-500.0,0.00014109,2]
[352062542,1738918241987,-548.17,0.00014109,2]
[352062543,1738918241996,-354.7326672,0.00014164,2]
[352062544,1738918242006,-354.7326672,0.00014164,2]
[352062545,1738918242015,-354.7326672,0.00014164,2]
[352062546,1738918242024,-354.7326672,0.00014164,2]
[352062547,1738918242033,-354.7326672,0.00014164,2]
[352062548,1738918242043,-354.7326672,0.00014164,2]
[352062549,1738918242052,-354.7326672,0.00014164,2]
[352062550,1738918242062,-354.7326672,0.00014164,2]
[352062551,1738918242071,-354.7326672,0.00014164,2]
[352062552,1738918242081,-263.7241485,0.00014164,2]
[352062553,1738918242090,-744.62464834,0.00014176,2]
[352062554,1738918242100,-500.0,0.00014183,2]
[352062555,1738918242109,-501.84304651,0.00014183,2]
[352062556,1738918242118,-500.0,0.00014194,2]
[352062557,1738918242130,-151.0,0.000142,2]
[352062558,1738918242140,-151.0,0.000142,2]
[352062559,1738918242148,-151.0,0.000142,2]
[352062560,1738918242157,-151.0,0.000142,2]
[352062561,1738918242167,-151.0,0.00014205,2]
[352062562,1738918242176,-1644.32556813,0.00014238,2]
[352062563,1738918242186,-522.73455886,0.00014245,2]
[352062564,1738918242195,-500.0,0.00014246,2]
[352062565,1738918242205,-500.0,0.00014246,2]
[352062566,1738918242215,-500.0,0.00014246,2]
[352062567,1738918242224,-500.0,0.00014246,2]
[352062568,1738918242233,-373.12125676,0.00014246,2]
[352062569,1738918242243,-500.0,0.00014246,2]
[352062570,1738918242252,-500.0,0.00014246,2]
[352062571,1738918242261,-500.0,0.00014246,2]
[352062572,1738918242270,-480.71,0.00014246,2]
[352062573,1738918242280,-343.9,0.00014246,2]
[352062574,1738918242289,-422.45,0.00014246,2]
[352062575,1738918242299,-500.0,0.00014246,2]
[352062576,1738918242308,-599.83,0.00014246,2]
[352062577,1738918242318,-593.94976778,0.00014246,2]
[352062578,1738918242327,-500.0,0.00014246,2]
[352062579,1738918242337,-500.0,0.00014246,2]
[352062580,1738918242347,-500.0,0.00014246,2]
[352062581,1738918242357,-500.0,0.00014246,2]
[352062582,1738918242366,-534.87,0.00014246,2]
[352062583,1738918242378,-500.0,0.00014246,2]
[352062584,1738918242387,-527.81,0.00014246,2]
[352062585,1738918242397,-500.0,0.00014246,2]
[352062586,1738918242407,-636.71687289,0.00014246,2]
[352062587,1738918242416,-1510.37,0.00014246,2]
[352062588,1738918242427,-500.0,0.00014246,2]
[352062589,1738918242438,-500.0,0.00014246,2]
[352062590,1738918242449,-786.9,0.00014246,2]
[352062591,1738918242459,-500.0,0.00014246,2]
[352062592,1738918242468,-500.0,0.00014246,2]
[352062593,1738918242478,-500.0,0.00014246,2]
[352062594,1738918242487,-500.0,0.00014246,2]
[352062595,1738918242496,-500.0,0.00014246,2]
[352062597,1738918242506,-500.0,0.00014246,2]
[352062599,1738918242515,-500.0,0.00014246,2]
[352062601,1738918242525,-735.35,0.00014246,2]
[352062603,1738918242534,-500.0,0.00014246,2]
[352062604,1738918242543,-500.0,0.00014246,2]
[352062605,1738918242552,-500.0,0.00014246,2]
[352062606,1738918242562,-369.28,0.00014246,2]
[352062607,1738918242571,-4304.02,0.00014246,2]
[352062608,1738918242581,-500.0,0.00014246,2]
[352062609,1738918242591,-500.0,0.00014246,2]
[352062610,1738918242601,-1043.52,0.00014246,2]
[352062611,1738918242615,-785.0,0.00014246,2]
[352062612,1738918242626,-206.84306773,0.00014246,2]
[352062613,1738918242637,-1222.5,0.00014246,2]
[352062614,1738918242649,-500.0,0.00014246,2]
[352062615,1738918242661,-5477.48,0.00014246,2]
[352062616,1738918242670,-3231.21,0.00014246,2]
[352062617,1738918242680,-644.68,0.00014246,2]
[352062618,1738918242689,-500.0,0.00014246,2]
[352062619,1738918242699,-500.0,0.00014246,2]
[352062620,1738918242708,-500.0,0.00014246,2]
[352062621,1738918242718,-500.0,0.00014246,2]
[352062622,1738918242727,-548.17,0.00014246,2]
[352062623,1738918242737,-1000.0,0.00014247,2]
[352062624,1738918242749,-420.0,0.00014255,2]
[352062625,1738918242758,-193.0,0.00014279,2]
[352062626,1738918242767,-151.0,0.000143,2]
[352062627,1738918242777,-151.0,0.000143,2]
[352062628,1738918242787,-151.0,0.000143,2]
[352062629,1738918242797,-151.0,0.000143,2]
[352062630,1738918242806,-4998.27507988,0.000143,2]
[352062631,1738918242815,-744.62464834,0.00014314,2]
[352062632,1738918242825,-500.14715968,0.00014329,2]
[352062633,1738918242835,-829.82073046,0.0001437,2]
[352062634,1738918242844,-500.0,0.00014374,2]
[352062635,1738918242854,-500.0,0.00014374,2]
[352062636,1738918242863,-500.0,0.00014374,2]
[352062637,1738918242874,-500.0,0.00014383,2]
[352062638,1738918242883,-198.50642274,0.00014383,2]
[352062639,1738918242893,-500.0,0.00014383,2]
[352062640,1738918242903,-500.0,0.00014383,2]
[352062641,1738918242913,-500.0,0.00014383,2]
[352062642,1738918242923,-500.0,0.00014383,2]
[352062643,1738918242933,-500.0,0.00014383,2]
[352062644,1738918242943,-259.27601292,0.00014383,2]
[352062645,1738918242952,-599.83,0.00014383,2]
[352062646,1738918242962,-500.0,0.00014383,2]
[352062647,1738918242971,-500.0,0.00014383,2]
[352062648,1738918242981,-500.0,0.00014383,2]
[352062649,1738918242991,-500.0,0.00014383,2]
[352062650,1738918243000,-482.24764055,0.00014383,2]
[352062651,1738918243010,-527.81,0.00014383,2]
[352062652,1738918243020,-278.18604435,0.00014383,2]
[352062653,1738918243031,-1510.37,0.00014383,2]
[352062654,1738918243040,-500.0,0.00014383,2]
[352062655,1738918243050,-500.0,0.00014383,2]
[352062656,1738918243059,-786.9,0.00014383,2]
[352062657,1738918243068,-500.0,0.00014383,2]
[352062658,1738918243077,-500.0,0.00014383,2]
[352062659,1738918243088,-500.0,0.00014383,2]
[352062660,1738918243099,-500.0,0.00014383,2]
[352062661,1738918243110,-500.0,0.00014383,2]
[352062662,1738918243119,-500.0,0.00014383,2]
[352062663,1738918243134,-500.0,0.00014383,2]
[352062664,1738918243143,-735.35,0.00014383,2]
[352062665,1738918243152,-235.82,0.00014383,2]
[352062666,1738918243161,-500.0,0.00014383,2]
[352062667,1738918243171,-500.0,0.00014383,2]
[352062668,1738918243180,-4304.02,0.00014383,2]
[352062669,1738918243189,-500.0,0.00014383,2]
[352062670,1738918243199,-500.0,0.00014383,2]
[352062671,1738918243208,-1043.52,0.00014383,2]
[352062672,1738918243217,-785.0,0.00014383,2]
[352062673,1738918243227,-1222.5,0.00014383,2]
[352062674,1738918243236,-500.0,0.00014383,2]
[352062675,1738918243245,-5477.48,0.00014383,2]
[352062676,1738918243254,-3231.21,0.00014383,2]
[352062677,1738918243263,-644.68,0.00014383,2]
[352062678,1738918243273,-500.0,0.00014383,2]
[352062679,1738918243282,-500.0,0.00014383,2]
[352062680,1738918243292,-500.0,0.00014383,2]
[352062681,1738918243301,-500.0,0.00014383,2]
[352062682,1738918243311,-548.17,0.00014383,2]
[352062683,1738918243320,-151.0,0.000144,2]
[352062684,1738918243330,-151.0,0.000144,2]
[352062685,1738918243339,-151.0,0.000144,2]
[352062686,1738918243348,-700.0,0.00014438,2]
[352062687,1738918243358,-1000.0,0.00014443,2]
[352062688,1738918243367,-744.62464834,0.00014452,2]
[352062689,1738918243379,-498.43807233,0.0001448,2]
[352062690,1738918243388,-151.0,0.000145,2]
[352062691,1738918243398,-151.0,0.000145,2]
[352062692,1738918243407,-151.0,0.000145,2]
[352062693,1738918243416,-500.0,0.0001452,2]
[352062694,1738918243426,-500.0,0.0001452,2]
[352062695,1738918243435,-500.0,0.0001452,2]
[352062696,1738918243445,-532.32727114,0.0001452,2]
[352062697,1738918243454,-500.0,0.0001452,2]
[352062698,1738918243465,-500.0,0.0001452,2]
[352062699,1738918243475,-599.83,0.0001452,2]
[352062700,1738918243485,-500.0,0.0001452,2]
[352062701,1738918243494,-500.0,0.0001452,2]
[352062702,1738918243503,-500.0,0.0001452,2]
[352062703,1738918243513,-615.60518247,0.0001452,2]
[352062704,1738918243523,-527.81,0.0001452,2]
[352062705,1738918243535,-1510.37,0.0001452,2]
[352062706,1738918243546,-500.0,0.0001452,2]
[352062707,1738918243555,-500.0,0.0001452,2]
[352062708,1738918243565,-786.9,0.0001452,2]
[352062709,1738918243577,-500.0,0.0001452,2]
[352062710,1738918243586,-500.0,0.0001452,2]
[352062711,1738918243596,-500.0,0.0001452,2]
[352062712,1738918243605,-500.0,0.0001452,2]
[352062713,1738918243615,-216.86007725,0.0001452,2]
[352062714,1738918243719,-500.0,0.0001452,2]
[352062715,1738918243746,-500.0,0.0001452,2]
[352062716,1738918243757,-735.35,0.0001452,2]
[352062717,1738918243766,-500.0,0.0001452,2]
[352062718,1738918243776,-500.0,0.0001452,2]
[352062719,1738918243785,-4304.02,0.0001452,2]
[352062720,1738918243795,-500.0,0.0001452,2]
[352062721,1738918243805,-500.0,0.0001452,2]
[352062722,1738918243814,-1043.52,0.0001452,2]
[352062723,1738918243825,-785.0,0.0001452,2]
[352062724,1738918243836,-1222.5,0.0001452,2]
[352062725,1738918243846,-385.63,0.0001452,2]
[352062726,1738918243856,-5477.48,0.0001452,2]
[352062727,1738918243865,-3231.21,0.0001452,2]
[352062728,1738918243876,-644.68,0.0001452,2]
[352062729,1738918243886,-500.0,0.0001452,2]